[Event "Titled Tuesday Blitz December 27 Late 2022"]
[White "Marcolino, Daniel Mattos"]
[Black "Gurevich, Dmitry"]
[WhiteFideId "2106841"]
[BlackFideId "2000407"]
[WhiteElo "2006"]
[BlackElo "2393"]
[Result "0-1"]
[Round "01"]
[TimeControl "180+2"]
[Date "2022.12.27"]
[WhiteClock "0:00:24"]
[BlackClock "0:00:20"]

1. d4 {[%clk 0:02:59]}  Nf6 {[%clk 0:02:59]} 2. Nf3 {[%clk 0:02:54]}  e6 {[%clk 0:02:58]} 3. g3 {[%clk 0:02:54]}  b5 {[%clk 0:02:56]} 4. Bg2 {[%clk 0:02:53]}  Bb7 {[%clk 0:02:56]} 5. O-O {[%clk 0:02:53]}  Na6 {[%clk 0:02:56]} 6. Qd3 {[%clk 0:02:44]}  b4 {[%clk 0:02:52]} 7. c3 {[%clk 0:02:36]}  Be7 {[%clk 0:02:46]} 8. Bf4 {[%clk 0:02:32]}  O-O {[%clk 0:02:42]} 9. Nbd2 {[%clk 0:02:31]}  c5 {[%clk 0:02:40]} 10. a3 {[%clk 0:02:15]}  bxc3 {[%clk 0:02:33]} 11. bxc3 {[%clk 0:02:14]}  Qc8 {[%clk 0:02:24]} 12. Nc4 {[%clk 0:02:01]}  Be4 {[%clk 0:02:22]} 13. Qd2 {[%clk 0:02:00]}  cxd4 {[%clk 0:02:15]} 14. Nd6 {[%clk 0:02:00]}  Bxd6 {[%clk 0:02:02]} 15. Bxd6 {[%clk 0:02:01]}  dxc3 {[%clk 0:02:02]} 16. Qe3 {[%clk 0:01:15]}  Re8 {[%clk 0:01:55]} 17. Rfc1 {[%clk 0:01:15]}  c2 {[%clk 0:01:50]} 18. Nd4 {[%clk 0:01:15]}  Bxg2 {[%clk 0:01:48]} 19. Kxg2 {[%clk 0:01:14]}  e5 {[%clk 0:01:32]} 20. Nf3 {[%clk 0:01:14]}  Qc6 {[%clk 0:01:23]} 21. Bb4 {[%clk 0:01:13]}  d5 {[%clk 0:01:09]} 22. Qd2 {[%clk 0:00:51]}  Rac8 {[%clk 0:01:03]} 23. Ra2 {[%clk 0:00:51]}  Ne4 {[%clk 0:00:58]} 24. Qxc2 {[%clk 0:00:51]}  Qxc2 {[%clk 0:00:57]} 25. Raxc2 {[%clk 0:00:51]}  Rxc2 {[%clk 0:00:55]} 26. Rxc2 {[%clk 0:00:52]}  Nxb4 {[%clk 0:00:54]} 27. axb4 {[%clk 0:00:53]}  f6 {[%clk 0:00:52]} 28. Rc7 {[%clk 0:00:51]}  Rb8 {[%clk 0:00:51]} 29. Rxa7 {[%clk 0:00:49]}  Rxb4 {[%clk 0:00:51]} 30. Ra2 {[%clk 0:00:47]}  d4 {[%clk 0:00:46]} 31. Ne1 {[%clk 0:00:43]}  Nc3 {[%clk 0:00:43]} 32. Rc2 {[%clk 0:00:41]}  Kf7 {[%clk 0:00:33]} 33. Nd3 {[%clk 0:00:41]}  Rb3 {[%clk 0:00:32]} 34. f3 {[%clk 0:00:37]}  Nxe2 {[%clk 0:00:27]} 35. Rxe2 {[%clk 0:00:36]}  Rxd3 {[%clk 0:00:26]} 36. Kf2 {[%clk 0:00:36]}  h5 {[%clk 0:00:24]} 37. Ra2 {[%clk 0:00:36]}  Kg6 {[%clk 0:00:24]} 38. h4 {[%clk 0:00:36]}  Kf5 {[%clk 0:00:23]} 39. Ra7 {[%clk 0:00:32]}  Rd2+ {[%clk 0:00:23]} 40. Ke1 {[%clk 0:00:31]}  Rd3 {[%clk 0:00:23]} 41. Ke2 {[%clk 0:00:31]}  Re3+ {[%clk 0:00:23]} 42. Kf2 {[%clk 0:00:31]}  g6 {[%clk 0:00:23]} 43. Ra4 {[%clk 0:00:28]}  Rb3 {[%clk 0:00:22]} 44. Ra2 {[%clk 0:00:27]}  g5 {[%clk 0:00:21]} 45. hxg5 {[%clk 0:00:24]}  fxg5 {[%clk 0:00:21]} 46. Ra8 {[%clk 0:00:24]}  Rb2+ {[%clk 0:00:21]} 47. Ke1 {[%clk 0:00:24]}  g4 {[%clk 0:00:21]} 48. fxg4+ {[%clk 0:00:23]}  hxg4 {[%clk 0:00:20]} 49. Rf8+ {[%clk 0:00:23]}  Ke4 {[%clk 0:00:20]} 50. Rg8 {[%clk 0:00:24]}  Ke3 {[%clk 0:00:20]} 0-1


[Site "https://www.chess.com"]

[Event "Titled Tuesday Blitz December 27 Late 2022"]
[White "Mardov, Dimitar"]
[Black "Yeritsyan, Hayk"]
[WhiteFideId "30919495"]
[BlackFideId "13307320"]
[WhiteElo "2456"]
[BlackElo "2241"]
[Result "1/2-1/2"]
[Round "01"]
[TimeControl "180+2"]
[Date "2022.12.27"]
[WhiteClock "0:00:01"]
[BlackClock "0:00:08"]

1. e4 {[%clk 0:02:53]}  c6 {[%clk 0:02:59]} 2. d4 {[%clk 0:02:46]}  d6 {[%clk 0:03:00]} 3. Nc3 {[%clk 0:02:47]}  d5 {[%clk 0:02:58]} 4. Nf3 {[%clk 0:02:46]}  dxe4 {[%clk 0:02:58]} 5. Nxe4 {[%clk 0:02:47]}  Nd7 {[%clk 0:02:58]} 6. Qe2 {[%clk 0:02:44]}  Ndf6 {[%clk 0:02:58]} 7. Bg5 {[%clk 0:02:44]}  Bg4 {[%clk 0:02:46]} 8. Nxf6+ {[%clk 0:02:40]}  Nxf6 {[%clk 0:02:45]} 9. Bxf6 {[%clk 0:02:36]}  gxf6 {[%clk 0:02:44]} 10. O-O-O {[%clk 0:02:33]}  Qd5 {[%clk 0:02:41]} 11. Kb1 {[%clk 0:02:19]}  O-O-O {[%clk 0:02:35]} 12. Qe3 {[%clk 0:02:08]}  Bxf3 {[%clk 0:02:34]} 13. gxf3 {[%clk 0:02:06]}  h5 {[%clk 0:02:30]} 14. Bd3 {[%clk 0:02:02]}  e6 {[%clk 0:02:29]} 15. Be4 {[%clk 0:01:49]}  Qd7 {[%clk 0:02:26]} 16. c3 {[%clk 0:01:44]}  f5 {[%clk 0:02:25]} 17. Bc2 {[%clk 0:01:44]}  Qd5 {[%clk 0:02:22]} 18. f4 {[%clk 0:01:40]}  Bh6 {[%clk 0:02:18]} 19. Rhg1 {[%clk 0:01:40]}  Rhg8 {[%clk 0:02:18]} 20. Rg3 {[%clk 0:01:36]}  Rg4 {[%clk 0:02:10]} 21. Rxg4 {[%clk 0:01:30]}  fxg4 {[%clk 0:02:08]} 22. Qe5 {[%clk 0:01:18]}  Qxe5 {[%clk 0:02:03]} 23. fxe5 {[%clk 0:01:19]}  c5 {[%clk 0:01:55]} 24. Rd3 {[%clk 0:00:57]}  Bf4 {[%clk 0:01:37]} 25. h3 {[%clk 0:00:55]}  cxd4 {[%clk 0:01:24]} 26. cxd4 {[%clk 0:00:56]}  gxh3 {[%clk 0:01:18]} 27. Rxh3 {[%clk 0:00:57]}  Rxd4 {[%clk 0:01:18]} 28. Rxh5 {[%clk 0:00:56]}  Rd2 {[%clk 0:01:07]} 29. f3 {[%clk 0:00:51]}  Re2 {[%clk 0:01:00]} 30. Be4 {[%clk 0:00:50]}  Kd7 {[%clk 0:00:52]} 31. a3 {[%clk 0:00:47]}  b6 {[%clk 0:00:50]} 32. b4 {[%clk 0:00:37]}  Be3 {[%clk 0:00:46]} 33. Rh7 {[%clk 0:00:35]}  Ke8 {[%clk 0:00:46]} 34. Rh8+ {[%clk 0:00:33]}  Ke7 {[%clk 0:00:46]} 35. Ra8 {[%clk 0:00:33]}  Bd4 {[%clk 0:00:33]} 36. Rxa7+ {[%clk 0:00:31]}  Kf8 {[%clk 0:00:33]} 37. Ra8+ {[%clk 0:00:30]}  Kg7 {[%clk 0:00:34]} 38. Kc1 {[%clk 0:00:26]}  Bxe5 {[%clk 0:00:31]} 39. a4 {[%clk 0:00:25]}  Rb2 {[%clk 0:00:19]} 40. a5 {[%clk 0:00:24]}  Rxb4 {[%clk 0:00:19]} 41. a6 {[%clk 0:00:23]}  Ra4 {[%clk 0:00:20]} 42. Kc2 {[%clk 0:00:14]}  b5 {[%clk 0:00:19]} 43. Kb3 {[%clk 0:00:11]}  Kf6 {[%clk 0:00:17]} 44. Bc6 {[%clk 0:00:09]}  Ra5 {[%clk 0:00:16]} 45. Kb4 {[%clk 0:00:08]}  Ra1 {[%clk 0:00:16]} 46. Kxb5 {[%clk 0:00:08]}  Rb1+ {[%clk 0:00:16]} 47. Kc5 {[%clk 0:00:07]}  Rc1+ {[%clk 0:00:16]} 48. Kb6 {[%clk 0:00:08]}  Bd4+ {[%clk 0:00:16]} 49. Kb7 {[%clk 0:00:08]}  Rb1+ {[%clk 0:00:15]} 50. Kc8 {[%clk 0:00:07]}  Ra1 {[%clk 0:00:14]} 51. Bb7 {[%clk 0:00:04]}  Ke5 {[%clk 0:00:14]} 52. Kd7 {[%clk 0:00:04]}  f5 {[%clk 0:00:14]} 53. Re8 {[%clk 0:00:04]}  Rd1 {[%clk 0:00:11]} 54. Rxe6+ {[%clk 0:00:04]}  Kf4 {[%clk 0:00:11]} 55. Rd6 {[%clk 0:00:04]}  Ke5 {[%clk 0:00:09]} 56. Rd5+ {[%clk 0:00:03]}  Kf6 {[%clk 0:00:09]} 57. a7 {[%clk 0:00:02]}  Ra1 {[%clk 0:00:08]} 58. Rxd4 {[%clk 0:00:01]}  Rxa7 {[%clk 0:00:09]} 59. Kc6 {[%clk 0:00:01]}  Ke5 {[%clk 0:00:09]} 60. Rh4 {[%clk 0:00:02]}  Ra3 {[%clk 0:00:08]} 61. Kc5 {[%clk 0:00:01]}  Rc3+ {[%clk 0:00:08]} 62. Rc4 {[%clk 0:00:02]}  Rb3 {[%clk 0:00:07]} 63. f4+ {[%clk 0:00:02]}  Kf6 {[%clk 0:00:06]} 64. Bd5 {[%clk 0:00:03]}  Rd3 {[%clk 0:00:06]} 65. Ra4 {[%clk 0:00:03]}  Rd1 {[%clk 0:00:06]} 66. Ra6+ {[%clk 0:00:02]}  Kg7 {[%clk 0:00:07]} 67. Re6 {[%clk 0:00:02]}  Re1 {[%clk 0:00:06]} 68. Rxe1 {[%clk 0:00:01]}  Kf6 {[%clk 0:00:07]} 69. Re5 {[%clk 0:00:01]}  Kg6 {[%clk 0:00:07]} 70. Rxf5 {[%clk 0:00:01]}  Kxf5 {[%clk 0:00:08]} 1/2-1/2


[Site "https://www.chess.com"]

[Event "Titled Tuesday Blitz December 27 Late 2022"]
[White "Marin Masis, Jose Esteban"]
[Black "Goncalves, Davi Sulzbacher"]
[WhiteFideId "6508146"]
[BlackFideId "2154510"]
[WhiteElo "1938"]
[BlackElo "2282"]
[Result "0-1"]
[Round "01"]
[TimeControl "180+2"]
[Date "2022.12.27"]
[WhiteClock "0:00:16"]
[BlackClock "0:00:21"]

1. e4 {[%clk 0:02:58]}  c5 {[%clk 0:02:59]} 2. Nf3 {[%clk 0:02:57]}  Nc6 {[%clk 0:02:59]} 3. d4 {[%clk 0:02:55]}  cxd4 {[%clk 0:03:00]} 4. Nxd4 {[%clk 0:02:55]}  Nf6 {[%clk 0:03:01]} 5. Nc3 {[%clk 0:02:54]}  e5 {[%clk 0:03:01]} 6. Ndb5 {[%clk 0:02:53]}  d6 {[%clk 0:03:01]} 7. Bg5 {[%clk 0:02:50]}  a6 {[%clk 0:03:01]} 8. Na3 {[%clk 0:02:51]}  b5 {[%clk 0:03:01]} 9. Nd5 {[%clk 0:02:49]}  Be7 {[%clk 0:03:01]} 10. Nxe7 {[%clk 0:02:49]}  Nxe7 {[%clk 0:03:00]} 11. Bxf6 {[%clk 0:02:48]}  gxf6 {[%clk 0:03:00]} 12. c4 {[%clk 0:02:48]}  Bb7 {[%clk 0:02:51]} 13. Bd3 {[%clk 0:02:43]}  bxc4 {[%clk 0:02:46]} 14. Nxc4 {[%clk 0:02:42]}  d5 {[%clk 0:02:36]} 15. exd5 {[%clk 0:02:24]}  Qxd5 {[%clk 0:02:20]} 16. Ne3 {[%clk 0:02:14]}  Qa5+ {[%clk 0:02:16]} 17. Qd2 {[%clk 0:02:13]}  Qxd2+ {[%clk 0:02:10]} 18. Kxd2 {[%clk 0:02:14]}  Rd8 {[%clk 0:02:08]} 19. Ke2 {[%clk 0:02:11]}  Ng6 {[%clk 0:02:04]} 20. Bxg6 {[%clk 0:02:00]}  hxg6 {[%clk 0:02:04]} 21. h4 {[%clk 0:01:45]}  f5 {[%clk 0:02:03]} 22. Rhd1 {[%clk 0:01:39]}  Rxh4 {[%clk 0:01:56]} 23. Rxd8+ {[%clk 0:01:38]}  Kxd8 {[%clk 0:01:57]} 24. Rd1+ {[%clk 0:01:37]}  Rd4 {[%clk 0:01:55]} 25. Rc1 {[%clk 0:01:27]}  f4 {[%clk 0:01:51]} 26. Nc2 {[%clk 0:01:20]}  Rc4 {[%clk 0:01:39]} 27. f3 {[%clk 0:01:18]}  Ke7 {[%clk 0:01:34]} 28. Kd3 {[%clk 0:01:16]}  Rc7 {[%clk 0:01:30]} 29. Re1 {[%clk 0:01:15]}  Kd6 {[%clk 0:01:27]} 30. Na3 {[%clk 0:01:14]}  Bd5 {[%clk 0:01:24]} 31. b3 {[%clk 0:01:13]}  f5 {[%clk 0:01:19]} 32. Re2 {[%clk 0:00:51]}  e4+ {[%clk 0:01:16]} 33. fxe4 {[%clk 0:00:51]}  Bxe4+ {[%clk 0:01:16]} 34. Kd4 {[%clk 0:00:48]}  f3 {[%clk 0:01:05]} 35. gxf3 {[%clk 0:00:44]}  Bxf3 {[%clk 0:01:06]} 36. Rd2 {[%clk 0:00:41]}  Ke6 {[%clk 0:00:58]} 37. Ke3 {[%clk 0:00:41]}  Be4 {[%clk 0:00:51]} 38. Nc4 {[%clk 0:00:38]}  g5 {[%clk 0:00:50]} 39. Rd6+ {[%clk 0:00:38]}  Ke7 {[%clk 0:00:50]} 40. Rxa6 {[%clk 0:00:35]}  Bd5 {[%clk 0:00:46]} 41. Ne5 {[%clk 0:00:31]}  f4+ {[%clk 0:00:45]} 42. Kd4 {[%clk 0:00:31]}  Be6 {[%clk 0:00:44]} 43. Nc6+ {[%clk 0:00:25]}  Kf6 {[%clk 0:00:40]} 44. Nb4 {[%clk 0:00:22]}  Kf5 {[%clk 0:00:37]} 45. Ra5+ {[%clk 0:00:22]}  Kg4 {[%clk 0:00:37]} 46. Re5 {[%clk 0:00:22]}  Bf5 {[%clk 0:00:29]} 47. Nd5 {[%clk 0:00:21]}  Rc6 {[%clk 0:00:23]} 48. b4 {[%clk 0:00:19]}  Rd6 {[%clk 0:00:21]} 49. Kc5 {[%clk 0:00:19]}  Rxd5+ {[%clk 0:00:18]} 50. Kxd5 {[%clk 0:00:19]}  f3 {[%clk 0:00:18]} 51. Re1 {[%clk 0:00:17]}  Bd3 {[%clk 0:00:18]} 52. Kd4 {[%clk 0:00:17]}  f2 {[%clk 0:00:17]} 53. Rd1 {[%clk 0:00:16]}  f1=Q {[%clk 0:00:16]} 54. Rxf1 {[%clk 0:00:16]}  Bxf1 {[%clk 0:00:17]} 55. a4 {[%clk 0:00:14]}  Kf3 {[%clk 0:00:18]} 56. b5 {[%clk 0:00:15]}  g4 {[%clk 0:00:18]} 57. Kc5 {[%clk 0:00:15]}  g3 {[%clk 0:00:18]} 58. b6 {[%clk 0:00:16]}  g2 {[%clk 0:00:18]} 59. b7 {[%clk 0:00:17]}  g1=Q+ {[%clk 0:00:19]} 60. Kc6 {[%clk 0:00:16]}  Qg3 {[%clk 0:00:20]} 61. b8=Q {[%clk 0:00:16]}  Qxb8 {[%clk 0:00:21]} 0-1


[Site "https://www.chess.com"]

[Event "Titled Tuesday Blitz December 27 Late 2022"]
[White "Martinez Alcantara, Jose Eduardo"]
[Black "Yurasova, Daria"]
[WhiteFideId "3805662"]
[BlackFideId "34146919"]
[WhiteElo "2619"]
[BlackElo "2095"]
[Result "1-0"]
[Round "01"]
[TimeControl "180+2"]
[Date "2022.12.27"]
[WhiteClock "0:01:21"]
[BlackClock "0:00:25"]

1. e4 {[%clk 0:02:58]}  e5 {[%clk 0:02:58]} 2. Nf3 {[%clk 0:02:58]}  Nc6 {[%clk 0:02:53]} 3. Bb5 {[%clk 0:02:58]}  a6 {[%clk 0:02:50]} 4. Ba4 {[%clk 0:02:58]}  Nf6 {[%clk 0:02:48]} 5. d3 {[%clk 0:02:59]}  b5 {[%clk 0:02:45]} 6. Bb3 {[%clk 0:02:59]}  Bc5 {[%clk 0:02:40]} 7. c3 {[%clk 0:03:00]}  d6 {[%clk 0:02:40]} 8. h3 {[%clk 0:03:00]}  h6 {[%clk 0:02:40]} 9. Nbd2 {[%clk 0:02:59]}  Bb7 {[%clk 0:02:35]} 10. Nf1 {[%clk 0:03:00]}  Bb6 {[%clk 0:02:28]} 11. Ng3 {[%clk 0:02:59]}  Ne7 {[%clk 0:02:27]} 12. O-O {[%clk 0:02:59]}  O-O {[%clk 0:02:26]} 13. Re1 {[%clk 0:02:59]}  Ng6 {[%clk 0:02:26]} 14. Be3 {[%clk 0:02:58]}  Bxe3 {[%clk 0:02:23]} 15. fxe3 {[%clk 0:02:58]}  d5 {[%clk 0:02:23]} 16. exd5 {[%clk 0:02:59]}  Bxd5 {[%clk 0:02:19]} 17. e4 {[%clk 0:02:57]}  Bxb3 {[%clk 0:02:18]} 18. axb3 {[%clk 0:02:58]}  Qd7 {[%clk 0:02:17]} 19. Qd2 {[%clk 0:02:52]}  Rfd8 {[%clk 0:02:06]} 20. d4 {[%clk 0:02:50]}  Qe6 {[%clk 0:02:01]} 21. d5 {[%clk 0:02:47]}  Qb6+ {[%clk 0:02:00]} 22. Kh2 {[%clk 0:02:46]}  c6 {[%clk 0:02:01]} 23. c4 {[%clk 0:02:46]}  cxd5 {[%clk 0:02:00]} 24. cxd5 {[%clk 0:02:45]}  Rac8 {[%clk 0:01:46]} 25. Nf5 {[%clk 0:02:40]}  Qc5 {[%clk 0:01:34]} 26. Rxa6 {[%clk 0:02:26]}  Qc2 {[%clk 0:01:27]} 27. Nxh6+ {[%clk 0:02:24]}  gxh6 {[%clk 0:01:20]} 28. Rxf6 {[%clk 0:02:23]}  Qxd2 {[%clk 0:01:20]} 29. Nxd2 {[%clk 0:02:24]}  Rc2 {[%clk 0:01:20]} 30. Nf3 {[%clk 0:02:20]}  Rxb2 {[%clk 0:01:16]} 31. Ra1 {[%clk 0:01:38]}  Rc8 {[%clk 0:01:07]} 32. Rc6 {[%clk 0:01:38]}  Re8 {[%clk 0:01:01]} 33. Rd1 {[%clk 0:01:29]}  Nf4 {[%clk 0:00:59]} 34. Rd2 {[%clk 0:01:27]}  Rxb3 {[%clk 0:00:59]} 35. d6 {[%clk 0:01:26]}  Kf8 {[%clk 0:00:42]} 36. Nxe5 {[%clk 0:01:22]}  Ra3 {[%clk 0:00:25]} 37. d7 {[%clk 0:01:22]}  Rd8 {[%clk 0:00:25]} 38. Rf6 {[%clk 0:01:21]} 1-0


[Site "https://www.chess.com"]

[Event "Titled Tuesday Blitz December 27 Late 2022"]
[White "Martinez Ramirez, Lennis"]
[Black "Ankerst, Mihael"]
[WhiteFideId "3509079"]
[BlackFideId "14602369"]
[WhiteElo "2426"]
[BlackElo "2370"]
[Result "1-0"]
[Round "01"]
[TimeControl "180+2"]
[Date "2022.12.27"]
[WhiteClock "0:02:19"]
[BlackClock "0:02:08"]

1. c4 {[%clk 0:03:00]}  e5 {[%clk 0:02:57]} 2. Nc3 {[%clk 0:02:58]}  Nf6 {[%clk 0:02:56]} 3. g3 {[%clk 0:02:58]}  c6 {[%clk 0:02:56]} 4. d4 {[%clk 0:02:57]}  exd4 {[%clk 0:02:56]} 5. Qxd4 {[%clk 0:02:57]}  d5 {[%clk 0:02:57]} 6. Bg2 {[%clk 0:02:56]}  Be6 {[%clk 0:02:50]} 7. cxd5 {[%clk 0:02:56]}  cxd5 {[%clk 0:02:49]} 8. Nf3 {[%clk 0:02:55]}  Nc6 {[%clk 0:02:50]} 9. Qa4 {[%clk 0:02:55]}  d4 {[%clk 0:02:49]} 10. Nb5 {[%clk 0:02:53]}  Bb4+ {[%clk 0:02:48]} 11. Bd2 {[%clk 0:02:52]}  Bxd2+ {[%clk 0:02:47]} 12. Nxd2 {[%clk 0:02:51]}  a6 {[%clk 0:02:43]} 13. Nxd4 {[%clk 0:02:50]}  Bd7 {[%clk 0:02:29]} 14. Nxc6 {[%clk 0:02:49]}  Qb6 {[%clk 0:02:08]} 15. Nc4 {[%clk 0:02:44]}  Qc5 {[%clk 0:02:08]} 16. Qb4 {[%clk 0:02:19]} 1-0


[Site "https://www.chess.com"]

[Event "Titled Tuesday Blitz December 27 Late 2022"]
[White "Moreno Perez, Tobias Sebastian"]
[Black "Moradiabadi, Elshan"]
[WhiteFideId "186716"]
[BlackFideId "12501255"]
[WhiteElo "2256"]
[BlackElo "2507"]
[Result "0-1"]
[Round "01"]
[TimeControl "180+2"]
[Date "2022.12.27"]
[WhiteClock "0:00:03"]
[BlackClock "0:01:08"]

1. Nf3 {[%clk 0:03:00]}  Nf6 {[%clk 0:03:00]} 2. d4 {[%clk 0:02:59]}  g6 {[%clk 0:03:01]} 3. Bf4 {[%clk 0:02:59]}  Bg7 {[%clk 0:03:02]} 4. e3 {[%clk 0:03:00]}  c5 {[%clk 0:03:02]} 5. Nbd2 {[%clk 0:02:58]}  cxd4 {[%clk 0:03:01]} 6. exd4 {[%clk 0:02:58]}  O-O {[%clk 0:03:02]} 7. h3 {[%clk 0:02:57]}  d6 {[%clk 0:03:03]} 8. c3 {[%clk 0:02:57]}  Nc6 {[%clk 0:03:03]} 9. Be2 {[%clk 0:02:53]}  Nd5 {[%clk 0:03:00]} 10. Bh2 {[%clk 0:02:52]}  e5 {[%clk 0:03:01]} 11. O-O {[%clk 0:02:52]}  exd4 {[%clk 0:02:57]} 12. Nb3 {[%clk 0:02:50]}  Re8 {[%clk 0:02:47]} 13. Nbxd4 {[%clk 0:02:37]}  Ne5 {[%clk 0:02:45]} 14. Nb5 {[%clk 0:02:25]}  Be6 {[%clk 0:02:43]} 15. c4 {[%clk 0:02:08]}  Nb6 {[%clk 0:02:33]} 16. Nxd6 {[%clk 0:02:04]}  Nexc4 {[%clk 0:02:25]} 17. Nxe8 {[%clk 0:01:55]}  Qxe8 {[%clk 0:02:26]} 18. Bxc4 {[%clk 0:01:45]}  Nxc4 {[%clk 0:02:25]} 19. Qe2 {[%clk 0:01:41]}  Nxb2 {[%clk 0:02:18]} 20. Rab1 {[%clk 0:01:25]}  Bc4 {[%clk 0:02:16]} 21. Qxe8+ {[%clk 0:01:24]}  Rxe8 {[%clk 0:02:17]} 22. Rfe1 {[%clk 0:01:23]}  Rd8 {[%clk 0:02:06]} 23. a3 {[%clk 0:00:41]}  b5 {[%clk 0:01:59]} 24. Be5 {[%clk 0:00:35]}  Nd3 {[%clk 0:01:59]} 25. Red1 {[%clk 0:00:30]}  Bf8 {[%clk 0:01:58]} 26. Ne1 {[%clk 0:00:21]}  Rd5 {[%clk 0:01:47]} 27. Bb2 {[%clk 0:00:13]}  Nf4 {[%clk 0:01:25]} 28. Rxd5 {[%clk 0:00:13]}  Bxd5 {[%clk 0:01:26]} 29. Nc2 {[%clk 0:00:09]}  Be4 {[%clk 0:01:14]} 30. Be5 {[%clk 0:00:05]}  Bxc2 {[%clk 0:01:11]} 31. Rb2 {[%clk 0:00:05]}  Nd3 {[%clk 0:01:10]} 32. Rxc2 {[%clk 0:00:05]}  Nxe5 {[%clk 0:01:11]} 33. Ra2 {[%clk 0:00:03]}  Nc4 {[%clk 0:01:10]} 34. a4 {[%clk 0:00:03]}  b4 {[%clk 0:01:11]} 35. Rc2 {[%clk 0:00:03]}  Na5 {[%clk 0:01:08]} 0-1


[Site "https://www.chess.com"]

[Event "Titled Tuesday Blitz December 27 Late 2022"]
[White "Myers, Dominique"]
[Black "Sargsyan, Anna M."]
[WhiteFideId "2041715"]
[BlackFideId "13308130"]
[WhiteElo "2042"]
[BlackElo "2375"]
[Result "0-1"]
[Round "01"]
[TimeControl "180+2"]
[Date "2022.12.27"]
[WhiteClock "0:00:37"]
[BlackClock "0:00:19"]

1. e4 {[%clk 0:02:58]}  c6 {[%clk 0:02:57]} 2. d4 {[%clk 0:02:53]}  d5 {[%clk 0:02:58]} 3. exd5 {[%clk 0:02:54]}  cxd5 {[%clk 0:02:58]} 4. Bd3 {[%clk 0:02:55]}  Nc6 {[%clk 0:02:57]} 5. c3 {[%clk 0:02:56]}  Nf6 {[%clk 0:02:58]} 6. Bf4 {[%clk 0:02:56]}  Bg4 {[%clk 0:02:59]} 7. Qb3 {[%clk 0:02:56]}  e5 {[%clk 0:02:58]} 8. dxe5 {[%clk 0:02:56]}  Nh5 {[%clk 0:02:57]} 9. Be3 {[%clk 0:02:53]}  Nxe5 {[%clk 0:02:56]} 10. Bc2 {[%clk 0:02:53]}  Be7 {[%clk 0:02:49]} 11. Nd2 {[%clk 0:02:51]}  O-O {[%clk 0:02:49]} 12. h3 {[%clk 0:02:49]}  Be6 {[%clk 0:02:48]} 13. Bd4 {[%clk 0:02:48]}  Nc6 {[%clk 0:02:48]} 14. Ndf3 {[%clk 0:02:48]}  Re8 {[%clk 0:02:47]} 15. Ne2 {[%clk 0:02:49]}  Na5 {[%clk 0:02:24]} 16. Qb5 {[%clk 0:02:48]}  Nc4 {[%clk 0:02:25]} 17. O-O {[%clk 0:02:42]}  a6 {[%clk 0:02:23]} 18. Qb3 {[%clk 0:02:31]}  Qc8 {[%clk 0:01:47]} 19. Bd3 {[%clk 0:02:16]}  Bxh3 {[%clk 0:01:40]} 20. gxh3 {[%clk 0:02:16]}  Qxh3 {[%clk 0:01:41]} 21. Bxc4 {[%clk 0:01:51]}  dxc4 {[%clk 0:01:21]} 22. Qxb7 {[%clk 0:01:51]}  Bd6 {[%clk 0:01:17]} 23. Rfe1 {[%clk 0:01:44]}  Rab8 {[%clk 0:01:17]} 24. Qc6 {[%clk 0:01:43]}  Re6 {[%clk 0:01:15]} 25. Ng3 {[%clk 0:01:31]}  Nxg3 {[%clk 0:01:01]} 26. fxg3 {[%clk 0:01:31]}  Qxg3+ {[%clk 0:01:00]} 27. Kf1 {[%clk 0:01:32]}  Qh3+ {[%clk 0:00:59]} 28. Kg1 {[%clk 0:01:24]}  Bh2+ {[%clk 0:00:38]} 29. Nxh2 {[%clk 0:01:23]}  Rxc6 {[%clk 0:00:39]} 30. Re3 {[%clk 0:01:20]}  Qh4 {[%clk 0:00:30]} 31. Rae1 {[%clk 0:01:18]}  h5 {[%clk 0:00:28]} 32. R1e2 {[%clk 0:01:17]}  Rg6+ {[%clk 0:00:26]} 33. Kh1 {[%clk 0:01:18]}  a5 {[%clk 0:00:26]} 34. Re4 {[%clk 0:01:12]}  Qg5 {[%clk 0:00:25]} 35. Nf3 {[%clk 0:01:05]}  Qc1+ {[%clk 0:00:23]} 36. Re1 {[%clk 0:00:57]}  Qxb2 {[%clk 0:00:22]} 37. R4e2 {[%clk 0:00:55]}  Qa3 {[%clk 0:00:22]} 38. Ne5 {[%clk 0:00:55]}  Rg3 {[%clk 0:00:16]} 39. Kh2 {[%clk 0:00:54]}  h4 {[%clk 0:00:16]} 40. Rf2 {[%clk 0:00:50]}  Rb2 {[%clk 0:00:16]} 41. Ree2 {[%clk 0:00:50]}  Rxe2 {[%clk 0:00:16]} 42. Rxe2 {[%clk 0:00:51]}  Qc1 {[%clk 0:00:16]} 43. Bf2 {[%clk 0:00:41]}  Qxc3 {[%clk 0:00:13]} 44. Nc6 {[%clk 0:00:36]}  Rg4 {[%clk 0:00:09]} 45. Ne7+ {[%clk 0:00:35]}  Kh7 {[%clk 0:00:08]} 46. Nd5 {[%clk 0:00:34]}  Qf3 {[%clk 0:00:08]} 47. Rd2 {[%clk 0:00:32]}  c3 {[%clk 0:00:09]} 48. Nxc3 {[%clk 0:00:28]}  Qxc3 {[%clk 0:00:10]} 49. Re2 {[%clk 0:00:26]}  h3 {[%clk 0:00:10]} 50. Re3 {[%clk 0:00:24]}  Qxe3 {[%clk 0:00:10]} 51. Bxe3 {[%clk 0:00:25]}  Rg2+ {[%clk 0:00:11]} 52. Kxh3 {[%clk 0:00:26]}  Rxa2 {[%clk 0:00:12]} 53. Bb6 {[%clk 0:00:24]}  a4 {[%clk 0:00:13]} 54. Bc5 {[%clk 0:00:25]}  Rb2 {[%clk 0:00:13]} 55. Kg3 {[%clk 0:00:25]}  Rb3+ {[%clk 0:00:13]} 56. Kf2 {[%clk 0:00:25]}  a3 {[%clk 0:00:14]} 57. Ke2 {[%clk 0:00:26]}  a2 {[%clk 0:00:15]} 58. Bd4 {[%clk 0:00:27]}  Rb1 {[%clk 0:00:16]} 59. Kd2 {[%clk 0:00:27]}  a1=Q {[%clk 0:00:17]} 60. Bxa1 {[%clk 0:00:27]}  Rxa1 {[%clk 0:00:17]} 61. Ke3 {[%clk 0:00:28]}  Ra6 {[%clk 0:00:18]} 62. Kf4 {[%clk 0:00:29]}  Rf6+ {[%clk 0:00:18]} 63. Kg4 {[%clk 0:00:30]}  g6 {[%clk 0:00:17]} 64. Kg5 {[%clk 0:00:31]}  Kg7 {[%clk 0:00:17]} 65. Kh4 {[%clk 0:00:31]}  Rf5 {[%clk 0:00:18]} 66. Kg4 {[%clk 0:00:32]}  Kf6 {[%clk 0:00:18]} 67. Kh4 {[%clk 0:00:33]}  Ke5 {[%clk 0:00:18]} 68. Kg3 {[%clk 0:00:34]}  Ke4 {[%clk 0:00:18]} 69. Kg4 {[%clk 0:00:35]}  f6 {[%clk 0:00:19]} 70. Kh4 {[%clk 0:00:36]}  Kf3 {[%clk 0:00:18]} 71. Kh3 {[%clk 0:00:37]}  Rh5# {[%clk 0:00:19]} 0-1


[Site "https://www.chess.com"]